[Event "Championnat d'Europe de Blitz"]
[Date "2024.12.09"]
[White "Djukic, Nikola"]
[Black "Dragnev, Valentin"]
[WhiteElo "2493"]
[BlackElo "2563"]
[Round "6.16"]
[Result "1-0"]
[TimeControl "180+2"]

1. e4 {[%emt 00:17:27] [%clk 00:03:02]} c6 {[%clk 00:03:04]} 2. Nc3 {[%emt
00:00:03] [%clk 00:03:02]} d5 {[%clk 00:03:05]} 3. Nf3 {[%clk 00:03:03]} Bg4
{[%emt 00:00:01] [%clk 00:03:06]} 4. h3 {[%clk 00:03:03]} Bxf3 {[%clk 00:03:07]}
5. Qxf3 {[%emt 00:00:02] [%clk 00:03:04]} e6 {[%emt 00:00:01] [%clk 00:03:08]}
6. d4 {[%emt 00:00:08] [%clk 00:02:57]} Nf6 {[%emt 00:00:09] [%clk 00:03:02]} 7.
Be2 {[%emt 00:00:56] [%clk 00:02:03]} dxe4 {[%emt 00:00:09] [%clk 00:02:55]} 8.
Qe3 {[%emt 00:00:01] [%clk 00:02:04]} Bb4 {[%emt 00:00:06] [%clk 00:02:51]} 9.
O-O {[%emt 00:00:02] [%clk 00:02:04]} Bxc3 {[%emt 00:00:02] [%clk 00:02:51]} 10.
bxc3 {[%emt 00:00:01] [%clk 00:02:05]} O-O {[%emt 00:00:02] [%clk 00:02:51]} 11.
c4 {[%emt 00:00:08] [%clk 00:01:58]} Nbd7 {[%emt 00:00:09] [%clk 00:02:44]} 12.
Rb1 {[%emt 00:00:02] [%clk 00:01:58]} Qc7 {[%emt 00:00:10] [%clk 00:02:37]} 13.
Rd1 {[%emt 00:00:11] [%clk 00:01:48]} Rfe8 {[%emt 00:00:25] [%clk 00:02:14]} 14.
Qg5 {[%emt 00:00:12] [%clk 00:01:38]} h6 {[%emt 00:00:07] [%clk 00:02:11]} 15.
Qh4 {[%clk 00:01:38]} e5 {[%emt 00:00:16] [%clk 00:01:57]} 16. Qg3 {[%emt
00:00:02] [%clk 00:01:39]} Kh8 {[%emt 00:00:21] [%clk 00:01:38]} 17. Bb2 {[%emt
00:00:25] [%clk 00:01:17]} Rac8 {[%emt 00:00:19] [%clk 00:01:20]} 18. Rbc1
{[%emt 00:00:18] [%clk 00:01:00]} exd4 {[%emt 00:00:19] [%clk 00:01:04]} 19.
Qxc7 {[%emt 00:00:02] [%clk 00:01:00]} Rxc7 {[%emt 00:00:01] [%clk 00:01:05]}
20. Rxd4 {[%emt 00:00:05] [%clk 00:00:57]} Kg8 {[%emt 00:00:16] [%clk 00:00:51]}
21. Rcd1 {[%emt 00:00:15] [%clk 00:00:44]} Ne5 {[%emt 00:00:20] [%clk 00:00:33]}
22. Rd6 {[%emt 00:00:01] [%clk 00:00:45]} Rce7 {[%emt 00:00:08] [%clk 00:00:27]}
23. Bd4 {[%emt 00:00:10] [%clk 00:00:37]} a6 {[%emt 00:00:07] [%clk 00:00:23]}
24. Rb1 {[%emt 00:00:18] [%clk 00:00:20]} Rc8 {[%emt 00:00:12] [%clk 00:00:13]}
25. Kf1 {[%emt 00:00:08] [%clk 00:00:13]} Kf8 {[%emt 00:00:01] [%clk 00:00:14]}
26. Ke1 {[%emt 00:00:02] [%clk 00:00:14]} Ke8 {[%emt 00:00:01] [%clk 00:00:15]}
27. a4 {[%emt 00:00:03] [%clk 00:00:13]} Rcc7 {[%emt 00:00:06] [%clk 00:00:11]}
28. a5 {[%emt 00:00:06] [%clk 00:00:09]} Ned7 {[%emt 00:00:04] [%clk 00:00:08]}
29. Kd2 {[%emt 00:00:06] [%clk 00:00:05]} c5 {[%emt 00:00:01] [%clk 00:00:09]}
30. Be3 {[%emt 00:00:02] [%clk 00:00:05]} Ne5 {[%emt 00:00:05] [%clk 00:00:07]}
31. Bf4 {[%emt 00:00:03]} g5 {[%clk 00:00:08]} 32. Bg3 {[%emt 00:00:01] [%clk
00:00:06]} h5 {[%emt 00:00:02] [%clk 00:00:08]} 33. Rxf6 {[%emt 00:00:02] [%clk
00:00:06]} h4 {[%emt 00:00:03] [%clk 00:00:07]} 34. Bh2 {[%clk 00:00:06]} Rcd7+
{[%emt 00:00:02] [%clk 00:00:08]} 35. Kc3 {[%emt 00:00:01] [%clk 00:00:07]} Nc6
{[%emt 00:00:03] [%clk 00:00:07]} 36. Bg4 {[%emt 00:00:03] [%clk 00:00:05]} Rd4
{[%emt 00:00:02] [%clk 00:00:07]} 37. Bd6 {[%emt 00:00:03] [%clk 00:00:05]} Nxa5
{[%emt 00:00:06] [%clk 00:00:04]} 38. Bxe7 {[%clk 00:00:06]} Kxe7 {[%emt
00:00:02] [%clk 00:00:04]} 39. Rfb6 {[%emt 00:00:03] [%clk 00:00:04]} Rxc4+
{[%emt 00:00:01] [%clk 00:00:05]} 40. Kd2 {[%emt 00:00:02] [%clk 00:00:05]} Rd4+
{[%emt 00:00:02] [%clk 00:00:05]} 41. Kc1 {[%emt 00:00:01] [%clk 00:00:06]} Rd5
{[%emt 00:00:02] [%clk 00:00:05]} 42. Ra1 {[%emt 00:00:04] [%clk 00:00:03]} Nc4
{[%emt 00:00:02] [%clk 00:00:05]} 43. Rxb7+ {[%emt 00:00:02] [%clk 00:00:05]}
Kf8 {[%clk 00:00:06]} 44. Rxa6 {[%emt 00:00:01] [%clk 00:00:05]} Ne5 {[%emt
00:00:02] [%clk 00:00:06]} 45. Be2 {[%emt 00:00:01] [%clk 00:00:06]} Ng6 {[%emt
00:00:03] [%clk 00:00:04]} 46. Rf6 {[%clk 00:00:07]} Ne5 {[%emt 00:00:03] [%clk
00:00:04]} 47. Bh5 {[%clk 00:00:08]} Rd4 {[%emt 00:00:04] [%clk 00:00:03]} 48.
Rfxf7+ {[%emt 00:00:02] [%clk 00:00:08]} Nxf7 {[%emt 00:00:01] [%clk 00:00:04]}
49. Rxf7+ {[%emt 00:00:01] [%clk 00:00:09]} Kg8 {[%emt 00:00:01] [%clk
00:00:05]} 50. Rf5 {[%clk 00:00:10]} Kh7 {[%emt 00:00:03] [%clk 00:00:03]} 51.
Rxg5 {[%clk 00:00:11]} 1-0

[Site "Europe Echecs"]

[Event "Championnat d'Europe de Blitz"]
[Date "2024.12.09"]
[White "Smeets, Jan"]
[Black "Cvitan, Ognjen"]
[WhiteElo "2552"]
[BlackElo "2413"]
[Round "6.17"]
[Result "1-0"]
[TimeControl "180+2"]

1. e4 {[%emt 00:00:02] [%clk 00:03:02]} c5 {[%emt 00:00:02] [%clk 00:03:02]} 2.
Nf3 {[%emt 00:00:01] [%clk 00:03:03]} d6 {[%emt 00:00:02] [%clk 00:03:02]} 3. d4
{[%emt 00:00:02] [%clk 00:03:03]} cxd4 {[%emt 00:00:01] [%clk 00:03:03]} 4. Nxd4
{[%emt 00:00:01] [%clk 00:03:04]} Nf6 {[%emt 00:00:02] [%clk 00:03:03]} 5. Nc3
{[%emt 00:00:01] [%clk 00:03:05]} a6 {[%emt 00:00:05] [%clk 00:03:00]} 6. Be2
{[%emt 00:00:03] [%clk 00:03:03]} e5 {[%emt 00:00:06] [%clk 00:02:55]} 7. Nf3
{[%emt 00:00:02] [%clk 00:03:04]} Be7 {[%emt 00:00:04] [%clk 00:02:53]} 8. O-O
{[%emt 00:00:07] [%clk 00:02:59]} O-O {[%emt 00:00:02] [%clk 00:02:53]} 9. Re1
{[%emt 00:00:02] [%clk 00:02:59]} Nbd7 {[%emt 00:00:10] [%clk 00:02:44]} 10. a4
{[%emt 00:00:04] [%clk 00:02:58]} b6 {[%clk 00:02:45]} 11. Bc4 {[%emt 00:00:11]
[%clk 00:02:49]} Bb7 {[%emt 00:00:01] [%clk 00:02:46]} 12. Nd2 {[%emt 00:00:26]
[%clk 00:02:26]} Qc7 {[%emt 00:00:22] [%clk 00:02:25]} 13. b3 {[%emt 00:00:22]
[%clk 00:02:07]} Rfd8 {[%emt 00:00:38] [%clk 00:01:52]} 14. Nf1 {[%emt 00:00:24]
[%clk 00:01:42]} h6 {[%emt 00:00:04] [%clk 00:01:49]} 15. Ne3 {[%emt 00:00:31]
[%clk 00:01:13]} Bc6 {[%emt 00:01:02] [%clk 00:00:50]} 16. Ned5 {[%emt 00:00:07]
[%clk 00:01:07]} Nxd5 {[%emt 00:00:03] [%clk 00:00:49]} 17. Nxd5 {[%emt
00:00:02] [%clk 00:01:08]} Bxd5 {[%emt 00:00:01] [%clk 00:00:49]} 18. Qxd5
{[%emt 00:00:07] [%clk 00:01:03]} Rf8 {[%clk 00:00:51]} 19. Ba3 {[%emt 00:00:08]
[%clk 00:00:58]} b5 {[%emt 00:00:17] [%clk 00:00:36]} 20. axb5 {[%emt 00:00:36]
[%clk 00:00:23]} Nb6 {[%emt 00:00:02] [%clk 00:00:36]} 21. Qd3 {[%emt 00:00:01]
[%clk 00:00:24]} Nxc4 {[%emt 00:00:03] [%clk 00:00:36]} 22. bxc4 {[%emt
00:00:06] [%clk 00:00:19]} Rfc8 {[%emt 00:00:04] [%clk 00:00:34]} 23. Bb2 {[%emt
00:00:09] [%clk 00:00:12]} Qxc4 {[%emt 00:00:12] [%clk 00:00:24]} 24. bxa6
{[%emt 00:00:04] [%clk 00:00:11]} Qxc2 {[%emt 00:00:04] [%clk 00:00:21]} 25.
Qxc2 {[%emt 00:00:06] [%clk 00:00:07]} Rxc2 {[%emt 00:00:01] [%clk 00:00:22]}
26. Bc1 {[%clk 00:00:09]} Rc6 {[%emt 00:00:06] [%clk 00:00:18]} 27. a7 {[%emt
00:00:01] [%clk 00:00:10]} Rc7 {[%emt 00:00:03] [%clk 00:00:17]} 28. Be3 {[%emt
00:00:01] [%clk 00:00:11]} Bg5 {[%clk 00:00:19]} 29. Bb6 {[%emt 00:00:02] [%clk
00:00:11]} Rb7 {[%clk 00:00:20]} 30. Ra6 {[%emt 00:00:03] [%clk 00:00:11]} Bd2
{[%emt 00:00:07] [%clk 00:00:14]} 31. Rd1 {[%emt 00:00:04] [%clk 00:00:08]} Bb4
{[%clk 00:00:15]} 32. Kf1 {[%emt 00:00:03] [%clk 00:00:07]} f6 {[%emt 00:00:03]
[%clk 00:00:14]} 33. Ke2 {[%emt 00:00:04] [%clk 00:00:06]} Kf7 {[%clk 00:00:15]}
34. Rda1 {[%emt 00:00:05] [%clk 00:00:04]} Ke6 {[%emt 00:00:05] [%clk 00:00:12]}
35. g4 {[%emt 00:00:01] [%clk 00:00:05]} g6 {[%emt 00:00:01] [%clk 00:00:13]}
36. Kf3 {[%emt 00:00:02] [%clk 00:00:05]} f5 {[%emt 00:00:01] [%clk 00:00:13]}
37. gxf5+ {[%emt 00:00:03] [%clk 00:00:05]} gxf5 {[%clk 00:00:14]} 38. exf5+
{[%emt 00:00:02] [%clk 00:00:04]} Kxf5 {[%clk 00:00:15]} 39. Rc1 {[%emt
00:00:02] [%clk 00:00:04]} d5 {[%emt 00:00:08] [%clk 00:00:10]} 40. Rc6 {[%clk
00:00:05]} d4 {[%emt 00:00:07] [%clk 00:00:06]} 41. Ke2 {[%emt 00:00:02] [%clk
00:00:04]} Ke4 {[%emt 00:00:03] [%clk 00:00:05]} 42. f3+ {[%emt 00:00:02] [%clk
00:00:04]} Kd5 {[%clk 00:00:06]} 43. Rxh6 {[%emt 00:00:01] [%clk 00:00:05]} Rg7
{[%emt 00:00:03] [%clk 00:00:05]} 44. Kd3 {[%emt 00:00:04] [%clk 00:00:03]} Rf7
{[%emt 00:00:01] [%clk 00:00:05]} 45. Ke2 {[%emt 00:00:02] [%clk 00:00:04]} Rg7
{[%emt 00:00:03] [%clk 00:00:04]} 46. Kf1 {[%emt 00:00:03] [%clk 00:00:03]} 1-0

[Site "Europe Echecs"]

[Event "Championnat d'Europe de Blitz"]
[Date "2024.12.09"]
[White "Larkin, Vladyslav"]
[Black "Baidetskyi, Valentin"]
[WhiteElo "2449"]
[BlackElo "2519"]
[Round "6.18"]
[Result "0-1"]
[TimeControl "180+2"]

1. e4 {[%clk 00:03:03]} e5 {[%emt 00:00:01] [%clk 00:03:03]} 2. Nf3 {[%clk
00:03:04]} Nc6 {[%emt 00:00:01] [%clk 00:03:04]} 3. Bb5 {[%emt 00:00:01] [%clk
00:03:06]} a6 {[%clk 00:03:06]} 4. Ba4 {[%clk 00:03:07]} Nge7 {[%emt 00:00:03]
[%clk 00:03:05]} 5. Nc3 {[%emt 00:00:02] [%clk 00:03:06]} d6 {[%emt 00:00:05]
[%clk 00:03:02]} 6. d3 {[%emt 00:00:02] [%clk 00:03:07]} h6 {[%emt 00:00:08]
[%clk 00:02:55]} 7. a3 {[%emt 00:00:06] [%clk 00:03:04]} g6 {[%emt 00:00:08]
[%clk 00:02:49]} 8. Be3 {[%emt 00:00:06] [%clk 00:03:00]} Bg7 {[%emt 00:00:01]
[%clk 00:02:49]} 9. Bb3 {[%emt 00:00:10] [%clk 00:02:52]} Be6 {[%emt 00:00:38]
[%clk 00:02:14]} 10. Bxe6 {[%emt 00:00:13] [%clk 00:02:40]} fxe6 {[%emt
00:00:02] [%clk 00:02:14]} 11. h4 {[%emt 00:00:05] [%clk 00:02:36]} Qd7 {[%emt
00:00:06] [%clk 00:02:11]} 12. h5 {[%emt 00:00:03] [%clk 00:02:35]} g5 {[%emt
00:00:03] [%clk 00:02:11]} 13. Nh2 {[%emt 00:00:18] [%clk 00:02:19]} d5 {[%emt
00:00:01] [%clk 00:02:12]} 14. Bc5 {[%emt 00:00:12] [%clk 00:02:09]} Ng8 {[%emt
00:00:12] [%clk 00:02:02]} 15. a4 {[%emt 00:00:04] [%clk 00:02:07]} O-O-O {[%emt
00:00:12] [%clk 00:01:52]} 16. Ng4 {[%emt 00:00:15]} Nf6 {[%clk 00:01:46]} 17.
Nxf6 {[%emt 00:00:02] [%clk 00:02:01]} Bxf6 {[%emt 00:00:01] [%clk 00:01:47]}
18. Ba3 {[%emt 00:00:23] [%clk 00:01:41]} Be7 {[%emt 00:00:13] [%clk 00:01:35]}
19. O-O {[%emt 00:00:15] [%clk 00:01:28]} Rhf8 {[%emt 00:00:05] [%clk 00:01:33]}
20. Bxe7 {[%emt 00:00:50] [%clk 00:00:39]} Qxe7 {[%emt 00:00:03] [%clk
00:01:32]} 21. Re1 {[%clk 00:00:40]} Qc5 {[%emt 00:00:05] [%clk 00:01:29]} 22.
Rf1 {[%emt 00:00:08] [%clk 00:00:34]} Rf6 {[%emt 00:00:19] [%clk 00:01:13]} 23.
Qg4 {[%emt 00:00:02] [%clk 00:00:33]} Kb8 {[%emt 00:00:06] [%clk 00:01:10]} 24.
Rae1 {[%emt 00:00:09] [%clk 00:00:26]} d4 {[%emt 00:00:06] [%clk 00:01:06]} 25.
Nb1 {[%emt 00:00:23] [%clk 00:00:05]} Qxc2 {[%emt 00:00:01] [%clk 00:01:06]} 26.
Qg3 {[%clk 00:00:07]} Qxb2 {[%emt 00:00:06] [%clk 00:01:01]} 27. Rc1 {[%emt
00:00:02] [%clk 00:00:07]} Rf4 {[%emt 00:00:13] [%clk 00:00:50]} 28. Qh3 {[%emt
00:00:02] [%clk 00:00:08]} Rdf8 {[%emt 00:00:10] [%clk 00:00:42]} 29. f3 {[%emt
00:00:03] [%clk 00:00:06]} g4 {[%emt 00:00:01] [%clk 00:00:43]} 30. Qg3 {[%emt
00:00:07]} gxf3 31. gxf3 {[%clk 00:00:00]} 0-1

[Site "Europe Echecs"]

[Event "Championnat d'Europe de Blitz"]
[Date "2024.12.09"]
[White "Gatineau, Yovann"]
[Black "Ragger, Markus"]
[WhiteElo "2363"]
[BlackElo "2577"]
[Round "6.19"]
[Result "0-1"]
[TimeControl "180+2"]

1. d4 {[%emt 00:01:23] [%clk 00:03:03]} Nf6 {[%clk 00:03:04]} 2. Bf4 {[%clk
00:03:04]} g6 {[%emt 00:00:03] [%clk 00:03:03]} 3. Nc3 {[%emt 00:00:01] [%clk
00:03:04]} d5 {[%clk 00:03:04]} 4. e3 {[%clk 00:03:05]} Bg7 {[%emt 00:00:02]
[%clk 00:03:05]} 5. Nb5 {[%emt 00:00:05] [%clk 00:03:02]} Na6 {[%emt 00:00:01]
[%clk 00:03:06]} 6. Nc3 {[%clk 00:03:03]} Nb8 {[%emt 00:00:01] [%clk 00:03:07]}
7. Nb5 {[%clk 00:03:05]} Na6 {[%emt 00:00:08] [%clk 00:03:02]} 8. Nc3 {[%clk
00:03:06]} O-O {[%emt 00:00:11] [%clk 00:02:53]} 9. Bxa6 {[%emt 00:00:01] [%clk
00:03:07]} bxa6 {[%clk 00:02:54]} 10. Nf3 {[%emt 00:00:01] [%clk 00:03:07]} c5
{[%emt 00:00:02] [%clk 00:02:55]} 11. dxc5 {[%emt 00:00:17] [%clk 00:02:52]} Qa5
{[%emt 00:00:02] [%clk 00:02:55]} 12. Be5 {[%emt 00:00:04] [%clk 00:02:49]} Qxc5
{[%emt 00:00:09] [%clk 00:02:49]} 13. O-O {[%emt 00:00:05] [%clk 00:02:46]} Bb7
{[%emt 00:00:22] [%clk 00:02:29]} 14. Qd4 {[%emt 00:00:11] [%clk 00:02:36]} Qxd4
{[%emt 00:00:03] [%clk 00:02:29]} 15. exd4 {[%emt 00:00:05] [%clk 00:02:33]}
Rfc8 {[%emt 00:00:12] [%clk 00:02:18]} 16. Rfc1 {[%emt 00:00:12] [%clk
00:02:22]} Ne4 {[%emt 00:00:06] [%clk 00:02:15]} 17. Bxg7 {[%emt 00:00:34] [%clk
00:01:51]} Nxc3 {[%emt 00:00:08] [%clk 00:02:09]} 18. bxc3 {[%emt 00:00:02]
[%clk 00:01:51]} Kxg7 {[%emt 00:00:02] [%clk 00:02:10]} 19. Rab1 {[%emt
00:00:04] [%clk 00:01:48]} Bc6 {[%emt 00:00:11] [%clk 00:02:01]} 20. Ne5 {[%emt
00:00:07] [%clk 00:01:43]} Bb5 {[%emt 00:00:06] [%clk 00:01:58]} 21. Rb3 {[%emt
00:00:11] [%clk 00:01:33]} Rc7 {[%emt 00:00:05] [%clk 00:01:55]} 22. Nd3 {[%emt
00:00:06] [%clk 00:01:29]} Bc4 {[%emt 00:00:02] [%clk 00:01:56]} 23. Ra3 {[%emt
00:00:02] [%clk 00:01:29]} Rb8 {[%emt 00:00:23] [%clk 00:01:34]} 24. Nc5 {[%emt
00:00:11] [%clk 00:01:19]} Rb2 {[%emt 00:00:03] [%clk 00:01:32]} 25. h4 {[%emt
00:00:37] [%clk 00:00:45]} Rc6 {[%emt 00:00:08] [%clk 00:01:26]} 26. Kh2 {[%emt
00:00:07] [%clk 00:00:40]} Rxa2 {[%emt 00:00:12] [%clk 00:01:16]} 27. Rxa2
{[%emt 00:00:02] [%clk 00:00:41]} Bxa2 {[%clk 00:01:17]} 28. Ra1 {[%emt
00:00:05] [%clk 00:00:37]} Bc4 {[%emt 00:00:01] [%clk 00:01:17]} 29. Ra5 {[%emt
00:00:15] [%clk 00:00:25]} Rb6 {[%emt 00:00:02] [%clk 00:01:18]} 30. Nd3 {[%emt
00:00:15] [%clk 00:00:11]} Bxd3 {[%emt 00:00:32] [%clk 00:00:48]} 31. cxd3
{[%emt 00:00:01] [%clk 00:00:12]} Rb3 {[%clk 00:00:49]} 32. Rxd5 {[%emt
00:00:05] [%clk 00:00:08]} Rxc3 {[%emt 00:00:04] [%clk 00:00:47]} 33. Ra5 {[%emt
00:00:04] [%clk 00:00:07]} Rxd3 {[%emt 00:00:02] [%clk 00:00:47]} 34. d5 {[%emt
00:00:02] [%clk 00:00:07]} Rb3 {[%emt 00:00:12] [%clk 00:00:37]} 35. Rxa6 {[%emt
00:00:02] [%clk 00:00:08]} Rb7 {[%clk 00:00:38]} 36. g3 {[%emt 00:00:03] [%clk
00:00:08]} Rd7 {[%emt 00:00:01] [%clk 00:00:38]} 37. Kg2 {[%emt 00:00:01] [%clk
00:00:08]} Kf8 {[%emt 00:00:06] [%clk 00:00:35]} 38. Kf3 {[%emt 00:00:01] [%clk
00:00:09]} Ke8 {[%clk 00:00:36]} 39. Ke4 {[%clk 00:00:10]} Kd8 {[%emt 00:00:01]
[%clk 00:00:38]} 40. Kd4 {[%emt 00:00:05] [%clk 00:00:07]} Kc8 {[%emt 00:00:01]
[%clk 00:00:38]} 41. Kc5 {[%emt 00:00:04] [%clk 00:00:04]} Kb7 {[%emt 00:00:07]
[%clk 00:00:33]} 42. Ra2 {[%emt 00:00:02] [%clk 00:00:05]} Rc7+ {[%emt 00:00:01]
[%clk 00:00:34]} 43. Kd4 {[%emt 00:00:01] [%clk 00:00:06]} a6 {[%emt 00:00:03]
[%clk 00:00:34]} 44. Rb2+ {[%emt 00:00:02] [%clk 00:00:06]} Ka7 {[%emt 00:00:01]
[%clk 00:00:35]} 45. Ke5 {[%emt 00:00:01] [%clk 00:00:06]} a5 {[%emt 00:00:03]
[%clk 00:00:34]} 46. Rb5 {[%emt 00:00:02] [%clk 00:00:06]} Ka6 {[%emt 00:00:01]
[%clk 00:00:35]} 47. Rb8 {[%clk 00:00:07]} a4 {[%emt 00:00:01] [%clk 00:00:36]}
48. d6 {[%emt 00:00:06] [%clk 00:00:04]} Rc5+ {[%emt 00:00:09] [%clk 00:00:29]}
49. Kd4 {[%emt 00:00:02] [%clk 00:00:03]} exd6 {[%emt 00:00:01] [%clk 00:00:30]}
50. Ra8+ {[%emt 00:00:02] [%clk 00:00:04]} Kb5 {[%clk 00:00:31]} 51. Ra7 {[%emt
00:00:02] [%clk 00:00:05]} Rf5 {[%emt 00:00:01] [%clk 00:00:31]} 52. f4 {[%emt
00:00:01] [%clk 00:00:06]} Kb4 {[%emt 00:00:02] [%clk 00:00:32]} 53. Rb7+ {[%emt
00:00:02] [%clk 00:00:05]} Rb5 {[%emt 00:00:04] [%clk 00:00:30]} 0-1

[Site "Europe Echecs"]

[Event "Championnat d'Europe de Blitz"]
[Date "2024.12.09"]
[White "Trushko, Andrii"]
[Black "Livaic, Leon"]
[WhiteElo "2143"]
[BlackElo "2560"]
[Round "6.20"]
[Result "1-0"]
[TimeControl "180+2"]

1. d4 {[%clk 00:03:04]} d6 {[%emt 00:00:02] [%clk 00:03:03]} 2. e4 {[%clk
00:03:05]} Nf6 {[%clk 00:03:03]} 3. f3 {[%emt 00:00:01] [%clk 00:03:06]} e6
{[%emt 00:00:02] [%clk 00:03:03]} 4. c4 {[%emt 00:00:01] [%clk 00:03:06]} Be7
{[%emt 00:00:02] [%clk 00:03:04]} 5. Nc3 {[%emt 00:00:03] [%clk 00:03:05]} O-O
{[%emt 00:00:01] [%clk 00:03:04]} 6. Bd3 {[%emt 00:00:04] [%clk 00:03:03]} c5
{[%emt 00:00:02] [%clk 00:03:04]} 7. d5 {[%emt 00:00:01] [%clk 00:03:04]} Nbd7
{[%clk 00:03:05]} 8. Nge2 {[%emt 00:00:03] [%clk 00:03:03]} Ne5 {[%emt 00:00:04]
[%clk 00:03:03]} 9. O-O {[%emt 00:00:04] [%clk 00:03:01]} a6 {[%emt 00:00:06]
[%clk 00:02:59]} 10. a4 {[%emt 00:00:01] [%clk 00:03:03]} Rb8 {[%emt 00:00:16]
[%clk 00:02:45]} 11. Be3 {[%emt 00:00:24] [%clk 00:02:40]} Bd7 {[%emt 00:00:10]
[%clk 00:02:37]} 12. h3 {[%emt 00:00:08] [%clk 00:02:34]} exd5 {[%emt 00:00:05]
[%clk 00:02:34]} 13. exd5 {[%emt 00:00:02] [%clk 00:02:34]} Re8 {[%emt 00:00:15]
[%clk 00:02:21]} 14. Bf2 {[%emt 00:00:07] [%clk 00:02:29]} Bf8 {[%emt 00:00:06]
[%clk 00:02:18]} 15. f4 {[%emt 00:00:14] [%clk 00:02:16]} Nxd3 {[%emt 00:00:08]
[%clk 00:02:12]} 16. Qxd3 {[%emt 00:00:01] [%clk 00:02:17]} Qb6 {[%emt 00:00:43]
[%clk 00:01:30]} 17. a5 {[%emt 00:00:33] [%clk 00:01:48]} Qc7 {[%emt 00:00:31]
[%clk 00:01:00]} 18. g4 {[%emt 00:00:24] [%clk 00:01:25]} b5 {[%emt 00:00:02]
[%clk 00:01:01]} 19. axb6 {[%emt 00:00:01] [%clk 00:01:26]} Rxb6 {[%emt
00:00:03] [%clk 00:01:01]} 20. Ra2 {[%emt 00:00:24] [%clk 00:01:04]} Reb8 {[%emt
00:00:10] [%clk 00:00:53]} 21. Ng3 {[%emt 00:00:06] [%clk 00:00:59]} Rxb2 {[%emt
00:00:10] [%clk 00:00:46]} 22. Rxa6 {[%clk 00:01:00]} g6 {[%emt 00:00:12] [%clk
00:00:36]} 23. f5 {[%emt 00:00:12] [%clk 00:00:50]} Bg7 {[%emt 00:00:17] [%clk
00:00:20]} 24. fxg6 {[%emt 00:00:06] [%clk 00:00:46]} hxg6 {[%emt 00:00:03]
[%clk 00:00:19]} 25. Qf3 {[%emt 00:00:14] [%clk 00:00:35]} Nh7 {[%emt 00:00:05]
[%clk 00:00:16]} 26. Nge4 {[%emt 00:00:06] [%clk 00:00:30]} Be5 {[%emt 00:00:07]
[%clk 00:00:11]} 27. Bg3 {[%emt 00:00:06] [%clk 00:00:27]} Bc8 {[%emt 00:00:01]
[%clk 00:00:12]} 28. Bxe5 {[%emt 00:00:03] [%clk 00:00:25]} dxe5 {[%emt
00:00:06] [%clk 00:00:08]} 29. Rc6 {[%emt 00:00:01] [%clk 00:00:27]} Qe7 {[%emt
00:00:01] [%clk 00:00:09]} 30. d6 {[%emt 00:00:07] [%clk 00:00:21]} Qf8 {[%emt
00:00:07] [%clk 00:00:04]} 31. Nd5 {[%emt 00:00:06] [%clk 00:00:17]} Be6 {[%clk
00:00:05]} 32. d7 {[%emt 00:00:07] [%clk 00:00:12]} R8b3 {[%emt 00:00:03] [%clk
00:00:04]} 33. Ndf6+ {[%emt 00:00:03] [%clk 00:00:11]} Nxf6 {[%emt 00:00:02]
[%clk 00:00:05]} 34. Qxf6 {[%emt 00:00:01] [%clk 00:00:11]} Rd3 {[%emt 00:00:05]
[%clk 00:00:03]} 35. Rxe6 {[%emt 00:00:01] [%clk 00:00:12]} Rxd7 {[%clk
00:00:04]} 36. Rxe5 {[%emt 00:00:02] [%clk 00:00:11]} Rd3 {[%emt 00:00:03] [%clk
00:00:03]} 37. Qh4 {[%emt 00:00:03] [%clk 00:00:10]} Kg7 {[%emt 00:00:03] [%clk
00:00:03]} 38. Nf6 {[%emt 00:00:03] [%clk 00:00:08]} Rdd2 {[%emt 00:00:03] [%clk
00:00:03]} 39. Qh7# {[%emt 00:00:01] [%clk 00:00:09]} 1-0

[Site "Europe Echecs"]